bitfinex/quotes_ETHUSD_20250123
["timestamp","ask_amount","ask_price","bid_price","bid_amount"]
[1737650568178,3.056,3272.3,3272.0,0.55]
[1737650568397,3.05588,3272.4,3272.0,0.8029442]
[1737650568572,3.05607,3272.2,3272.0,0.8029442]
[1737650568932,3.05593,3272.4,3272.0,0.55]
[1737650569229,3.05567,3272.6,3272.0,0.55]
[1737650569377,3.05578,3272.5,3272.0,0.55]
[1737650569733,4.6392,3273.0,3272.0,0.55]
[1737650569734,3.05587,3272.4,3272.0,0.55]
[1737650570025,3.05558,3272.7,3272.0,3.60621]
[1737650570187,3.05541,3272.9,3272.2,0.55]
[1737650570388,3.0555,3272.8,3272.4,0.55]
[1737650570625,3.05544,3272.9,3272.6,0.55]
[1737650570973,3.05558,3272.7,3272.3,0.55]
[1737650571178,3.05544,3272.9,3272.3,0.55]
[1737650571411,3.05544,3272.9,3272.4,0.20698]
[1737650572011,3.68060593,3273.1,3272.4,0.20698]
[1737650572282,3.68060593,3273.1,3272.5,3.60574]
[1737650572607,3.68060593,3273.1,3272.5,0.55]
[1737650572811,3.0553,3273.0,3272.5,0.55]
[1737650573383,0.62538593,3273.1,3272.5,3.60576]
[1737650573592,0.62538593,3273.1,3272.6,0.381274]
[1737650573793,3.05512,3273.2,3272.7,0.55]
[1737650574001,0.61862095,3273.5,3272.9,0.55]
[1737650574208,3.05475,3273.6,3272.9,0.55]
[1737650574486,3.05493,3273.4,3272.9,0.55]
[1737650574675,3.05493,3273.4,3273.1,0.55]
[1737650576192,3.05474,3273.6,3273.1,0.55]
[1737650576389,1.4928,3273.8,3273.1,3.60519]
[1737650576715,1.4928,3273.8,3273.0,0.21615]
[1737650576716,1.6125,3274.9,3273.3,0.55]
[1737650576930,3.054,3274.4,3274.0,0.55]
[1737650577126,3.054,3274.4,3274.2,0.55]
[1737650577503,3.05381,3274.6,3274.2,0.55]
[1737650578025,3.66123437,3274.7,3274.2,0.55]
[1737650578228,3.0538,3274.7,3274.2,0.55]
[1737650578395,6.0538,3274.7,3274.2,0.55]
[1737650578599,3.0,3274.7,3274.2,0.55]
[1737650578797,3.05342,3275.1,3274.4,0.55]
[1737650579101,3.05342,3275.1,3273.4,3.0]
[1737650579102,3.0532,3275.3,3274.6,0.55]
[1737650579286,3.05308,3275.4,3274.6,3.60372]
[1737650579480,3.05308,3275.4,3274.7,0.58020751]
[1737650579684,0.62081479,3275.5,3274.7,0.58020751]
[1737650579881,0.62081479,3275.5,3275.3,0.55]
[1737650580097,3.0529,3275.6,3275.3,0.55]
[1737650580295,3.0529,3275.6,3275.4,0.03024196]
[1737650580522,3.05296,3275.5,3275.4,0.03024196]
[1737650580940,3.05296,3275.5,3275.0,0.55]
[1737650581139,3.05324,3275.3,3275.0,0.79695928]
[1737650581286,3.05324,3275.3,3275.1,0.03023973]
[1737650581487,3.05324,3275.2,3275.1,0.03023973]
[1737650582260,3.05299,3275.5,3275.0,0.55]
[1737650582433,3.05254,3276.0,3275.4,0.55]
[1737650582613,0.60750016,3276.1,3275.6,2.1432]
[1737650582821,3.05223,3276.3,3275.7,0.03002218]
[1737650583934,3.05233,3276.2,3275.7,0.03002218]
[1737650584231,3.0,3276.4,3275.7,0.03002218]
[1737650584433,3.05268,3275.8,3275.7,0.03002218]
[1737650585601,3.05287,3275.6,3275.2,1.5332]
[1737650585799,3.05313,3275.4,3275.3,0.57903516]
[1737650586072,3.05313,3275.4,3275.3,0.02903516]
[1737650586488,3.05324,3275.2,3274.9,0.55]
[1737650586689,3.05342,3275.1,3274.7,8.77]
[1737650587086,3.05342,3275.1,3274.6,1.5628]
[1737650587326,3.05345,3275.0,3274.6,1.5628]
[1737650587739,3.05342,3275.1,3274.7,0.55]
[1737650588718,3.05351,3275.0,3274.7,0.55]
[1737650588900,3.0536,3274.9,3274.7,0.55]
[1737650589099,3.05362,3274.8,3274.7,0.55]
[1737650589304,3.05362,3274.8,3274.6,0.55]
[1737650589659,3.05371,3274.7,3274.4,0.641]
[1737650589879,3.05372,3274.7,3274.5,0.55]
[1737650590374,3.0539,3274.5,3274.3,1.5157]
[1737650590550,5.12024888,3275.5,3274.4,0.55]
[1737650590551,3.05354,3274.9,3274.4,0.55]
[1737650590868,3.05326,3275.2,3274.6,0.55]
[1737650591084,1.5136,3275.8,3274.8,0.55]
[1737650591258,3.64932513,3275.9,3275.3,2.0327]
[1737650591467,3.05256,3276.0,3275.3,5.08585]
[1737650591619,3.05266,3275.9,3275.3,5.08584]
[1737650591970,1.4866,3276.4,3275.3,2.0327]
[1737650592155,3.05262,3275.9,3275.3,5.08585]
[1737650592359,3.05262,3275.9,3275.5,0.55]
[1737650593279,3.05282,3275.7,3275.4,0.55]
[1737650593853,3.05293,3275.6,3275.4,0.55]
[1737650594148,3.05296,3275.5,3275.4,0.55]
[1737650594353,3.0529,3275.6,3275.1,0.55]
[1737650594605,3.05291,3275.6,3275.3,0.55]
[1737650594804,3.05291,3275.6,3275.2,1.395301]
[1737650594805,3.05306,3275.4,3275.0,10.3496]
[1737650595118,1.5393,3275.7,3275.0,1.5796]
[1737650595268,3.05324,3275.2,3275.1,0.55]
[1737650595682,3.05344,3275.0,3274.7,10.3291]
[1737650595999,3.05335,3275.1,3274.7,11.36201]
[1737650596155,3.05335,3275.1,3274.8,0.55]
[1737650596353,3.05313,3275.4,3274.8,0.55]
[1737650596570,3.05334,3275.1,3274.8,0.55]
[1737650596792,3.05343,3275.0,3274.8,0.55]
[1737650597094,1.5393,3275.7,3274.4,1.4997]
[1737650597296,3.05359,3274.9,3274.4,1.4997]
[1737650597803,3.05363,3274.8,3274.5,0.55]
[1737650598296,3.05374,3274.7,3274.5,0.55]
[1737650598497,3.05347,3275.0,3274.5,0.55]
[1737650598701,3.69401342,3276.8,3274.7,0.55]
[1737650598901,3.05346,3275.0,3274.6,10.3073]
[1737650599104,3.05306,3275.4,3274.0,10.3421]
[1737650599400,3.05399,3274.4,3274.0,1.5721]
[1737650599554,3.05416,3274.3,3274.0,1.5721]
[1737650599749,3.05427,3274.1,3274.0,2.1221]
[1737650599955,3.05418,3274.2,3274.1,0.55]
[1737650600200,3.05427,3274.1,3273.9,8.77]
[1737650600386,3.05436,3274.0,3273.9,9.32]
[1737650601274,3.05424,3274.2,3274.0,0.55]
[1737650601545,3.05427,3274.1,3274.0,0.55]
[1737650602349,3.05393,3274.5,3274.0,1.482]
[1737650602562,3.05372,3274.7,3274.2,0.55]
[1737650602776,0.60057144,3274.9,3274.2,0.55]
[1737650602921,3.05369,3274.8,3274.2,3.60411]
[1737650603263,0.60057144,3274.9,3274.2,3.60411]
[1737650603486,3.05325,3275.2,3274.6,9.32]
[1737650603773,3.05325,3275.2,3274.8,0.55]
[1737650604316,3.0529,3275.6,3275.1,8.77]
[1737650604521,3.05308,3275.4,3275.2,0.55]
[1737650604768,3.05297,3275.5,3275.2,0.55]
[1737650604935,3.05308,3275.4,3275.2,0.55]
[1737650606366,3.05315,3275.3,3275.2,0.55]
[1737650607636,3.05308,3275.4,3275.2,0.55]
[1737650607873,3.05289,3275.6,3275.4,0.55]
[1737650608081,3.05238,3276.2,3275.5,0.55]
[1737650608221,3.05208,3276.5,3275.9,3.60256]
[1737650608557,3.05188,3276.7,3276.1,0.55]
[1737650608744,3.05188,3276.7,3276.1,2.252385]
[1737650608924,0.59588917,3276.6,3276.1,2.252385]
[1737650609125,0.59588917,3276.6,3276.3,0.55]
[1737650609326,3.05188,3276.7,3276.3,0.55]
[1737650609627,3.05188,3276.7,3276.2,0.55]
[1737650609865,3.05204,3276.5,3276.2,2.1173625]
[1737650610241,3.05222,3276.3,3276.0,10.3688]
[1737650610568,3.05204,3276.5,3276.0,10.3688]
[1737650610724,3.0517,3276.9,3276.1,0.55]
[1737650610925,3.05179,3276.8,3276.3,0.55]
[1737650611127,3.05194,3276.6,3276.5,0.55]
[1737650611326,3.0518,3276.8,3276.2,3.05224]
[1737650611563,3.0518,3276.8,3276.3,0.55]
[1737650612548,3.05157,3277.0,3276.3,0.55]
[1737650612753,3.0514,3277.2,3276.8,0.55]
[1737650613270,3.05149,3277.1,3276.8,0.55]
[1737650614257,3.0516,3277.0,3276.8,0.55]
[1737650614422,3.05113,3277.5,3276.8,0.55]
[1737650614627,3.05132,3277.3,3276.8,0.55]
[1737650614966,3.05078,3277.9,3277.5,0.55]
[1737650615373,3.05082,3277.9,3277.5,0.55]
[1737650615730,3.67425658,3278.1,3277.5,0.55]
[1737650615932,3.05075,3277.9,3277.5,0.55]
[1737650616369,3.67425658,3278.1,3277.5,0.55]
[1737650616665,3.05073,3278.0,3277.7,0.55]
[1737650616873,3.05073,3277.9,3277.1,10.3541]
[1737650617030,3.05073,3278.0,3276.6,3.05193]
[1737650617031,3.05138,3277.2,3276.7,1.5841]
[1737650617231,3.05147,3277.1,3276.8,0.55]
[1737650617659,3.05147,3277.1,3276.6,0.637]
[1737650617660,3.05175,3276.8,3276.6,0.637]
[1737650617962,3.05185,3276.7,3276.6,0.637]
[1737650618138,3.05185,3276.7,3276.6,1.187]
[1737650618474,3.05175,3276.8,3276.7,0.55]
[1737650618763,3.05192,3276.7,3276.4,1.5734]
[1737650618964,3.05233,3276.2,3276.0,1.5271]
[1737650619266,3.05214,3276.4,3276.1,0.55]
[1737650619467,3.05214,3276.4,3276.0,1.5271]
[1737650619624,3.05171,3276.9,3276.1,0.55]
[1737650619830,3.05171,3276.9,3276.3,0.55]
[1737650620025,3.05145,3277.2,3276.3,3.60214]
[1737650620362,3.05145,3277.2,3276.5,0.55]
[1737650620564,3.05149,3277.1,3276.7,0.55]
[1737650620764,4.506,3277.5,3276.7,0.55]
[1737650620968,1.506,3277.5,3276.7,0.55]
[1737650621140,3.05145,3277.2,3276.7,0.55]
[1737650621346,3.05137,3277.3,3276.9,0.55]
[1737650621743,3.05137,3277.3,3276.8,0.55]
[1737650622173,3.05111,3277.5,3277.1,0.55]
[1737650623270,3.05128,3277.4,3277.1,0.55]
[1737650623445,3.05111,3277.5,3277.1,0.55]
[1737650623836,3.0512,3277.4,3277.1,0.55]
[1737650624231,3.05129,3277.3,3277.1,0.55]
[1737650624630,3.05138,3277.2,3277.1,0.55]
[1737650624843,3.05146,3277.2,3277.0,35.0]
[1737650625050,3.05147,3277.1,3277.0,35.55]
[1737650625274,3.661763,3277.1,3277.0,0.55]
[1737650625759,3.05147,3277.1,3277.0,35.55]
[1737650626775,6.05147,3277.1,3277.0,35.0]
[1737650627271,6.05147,3277.1,3277.0,35.55]
[1737650627635,3.05198,3276.6,3276.2,1.5042]
[1737650627836,3.05198,3276.6,3275.8,8.77]
[1737650627837,0.610376,3276.6,3275.8,1.479]
[1737650628129,0.610376,3276.6,3275.2,2.197]
[1737650628130,3.05275,3275.8,3275.5,36.479]
[1737650628334,3.05287,3275.6,3275.5,35.0]
[1737650628569,3.0,3275.8,3275.2,2.197]
[1737650628761,3.053,3275.5,3275.2,2.197]
[1737650628974,3.053,3275.5,3275.3,35.55]
[1737650629336,3.05306,3275.4,3275.3,35.55]
[1737650629668,1.5836,3276.6,3275.3,37.49974533]
[1737650629885,3.05217,3276.4,3275.5,0.55]
[1737650630042,1.5836,3276.9,3275.6,0.55]
[1737650630043,3.05241,3276.1,3275.6,0.55]
[1737650630679,3.05223,3276.3,3275.6,0.55]
[1737650630845,3.05242,3276.1,3275.6,0.55]
[1737650631045,6.10491,3276.1,3275.6,1.94284]
[1737650631253,3.05242,3276.1,3275.6,1.94284]
[1737650631469,3.05221,3276.4,3275.6,1.94284]
[1737650631676,3.0525,3276.0,3275.7,0.55]
[1737650632273,3.05307,3275.4,3274.9,10.2427]
[1737650632471,3.05307,3275.4,3275.0,1.329631]
[1737650632787,3.05316,3275.3,3275.1,35.0]
[1737650633288,3.05316,3275.3,3275.2,0.55]
[1737650633445,3.0,3275.5,3275.0,1.329631]
[1737650633638,3.05319,3275.3,3275.0,1.329631]
[1737650633876,3.05325,3275.2,3275.0,1.329631]
[1737650634592,3.05325,3275.2,3274.9,10.2427]
[1737650634593,3.05325,3275.2,3275.1,35.0]
[1737650635591,3.05325,3275.2,3275.1,35.55]
[1737650637271,3.05325,3275.2,3275.1,35.58378464]
[1737650637964,4.57835,3275.2,3275.1,35.03378464]
[1737650638157,7.57835,3275.2,3275.1,4.64e-06]
[1737650638478,3.05392,3274.5,3273.8,1.4874]
[1737650638694,3.05407,3274.4,3274.3,35.0]
[1737650638867,3.05407,3274.4,3274.3,35.55]
[1737650639602,3.05347,3275.0,3274.4,3.60392]
[1737650640148,3.05356,3274.9,3274.4,0.55]
[1737650640485,3.05347,3275.0,3274.9,0.55]
[1737650640887,3.05326,3275.2,3274.9,0.55]
[1737650641196,3.05306,3275.5,3274.9,0.55]
[1737650641197,3.05312,3275.4,3274.9,0.55]
[1737650641373,3.05312,3275.4,3274.8,35.0]
[1737650641374,3.05312,3275.4,3275.1,0.55]
[1737650641569,3.05315,3275.3,3275.1,0.55]
[1737650642165,3.05279,3275.7,3275.1,0.55]
[1737650642585,3.05288,3275.6,3275.1,0.55]
[1737650642790,3.05302,3275.5,3275.3,0.55]
[1737650642963,3.05288,3275.6,3275.3,0.55]
[1737650643163,3.05288,3275.6,3275.2,0.55]
[1737650643365,3.05299,3275.5,3275.2,0.55]
[1737650643663,3.05299,3275.5,3275.4,35.55]
[1737650644503,3.05299,3275.5,3275.4,35.0]
[1737650644703,3.05279,3275.7,3275.5,0.55]
[1737650645763,3.05275,3275.8,3275.5,0.55]
[1737650645963,3.05247,3276.1,3275.5,1.51194576]
[1737650646249,3.05256,3276.0,3275.7,0.55]
[1737650646359,3.05247,3276.1,3275.7,0.55]
[1737650646560,3.05232,3276.2,3275.7,0.55]
[1737650646797,3.67572792,3276.3,3275.7,0.55]
[1737650647095,3.05241,3276.1,3275.7,0.55]
[1737650647870,3.05238,3276.2,3275.7,0.55]
[1737650648069,3.05254,3276.0,3275.7,0.55]
[1737650648269,3.05248,3276.1,3275.9,0.55]
[1737650648482,3.0525,3276.0,3275.9,0.55]
[1737650649403,3.662998,3276.0,3275.9,0.55]
[1737650649971,3.662998,3276.0,3274.7,1.5603]
[1737650649972,1.4901,3275.9,3274.7,1.5603]
[1737650650169,3.05328,3275.2,3274.7,1.5603]
[1737650650400,4.4901,3275.9,3274.8,35.0]
[1737650650601,3.0,3275.6,3275.1,1.5306]
[1737650650788,6.0529,3275.6,3275.1,1.5306]
[1737650650984,3.05268,3275.8,3275.2,0.55]
[1737650651271,3.0529,3275.6,3275.2,0.55]
[1737650651478,3.05299,3275.5,3275.2,0.55]
[1737650651673,3.05307,3275.4,3275.2,0.55]
[1737650651873,3.05312,3275.4,3275.2,0.55]
[1737650652195,3.05334,3275.1,3274.8,35.0]
[1737650652395,3.05334,3275.1,3274.8,36.4979]
[1737650652601,3.05334,3275.1,3274.9,0.55]
[1737650652922,3.05343,3275.0,3274.9,0.55]
[1737650657693,3.05334,3275.1,3274.8,35.0]
[1737650657887,3.05211,3276.5,3274.8,35.0]
[1737650657888,3.05269,3275.8,3275.0,0.55]
[1737650658146,3.05232,3276.2,3275.6,0.55]
[1737650658297,3.05266,3275.9,3275.7,1.3879]
[1737650658496,3.05266,3275.9,3275.8,35.55]
[1737650659815,3.05227,3276.3,3275.9,0.55]
[1737650660116,3.05248,3276.1,3275.9,0.55]
[1737650660316,3.05223,3276.3,3276.0,0.55]
[1737650660513,3.05208,3276.5,3276.0,0.55]
[1737650660712,3.05222,3276.3,3276.1,35.0]
[1737650660936,3.05231,3276.2,3276.1,35.0]
[1737650661094,3.05208,3276.5,3276.1,35.55]
[1737650661294,3.0523,3276.3,3276.1,35.55]
[1737650661695,3.0523,3276.3,3276.2,0.55]
[1737650664395,3.05232,3276.2,3275.8,8.77]
[1737650664727,3.05232,3276.2,3275.9,0.55]
[1737650665064,3.05232,3276.2,3276.1,0.55]
[1737650665580,3.05215,3276.4,3276.1,0.55]
[1737650666064,3.6658218,3276.6,3276.1,3.1697422]
[1737650666569,3.6658218,3276.6,3276.1,0.55]
[1737650666923,6.7178418,3276.6,3276.1,0.55]
[1737650667163,3.6658218,3276.6,3276.1,0.55]
[1737650667468,0.6138618,3276.6,3276.1,0.55]
[1737650667670,0.6138618,3276.6,3276.2,3.0523]
[1737650667873,0.6138618,3276.6,3276.3,0.55]
[1737650668229,3.6658318,3276.6,3276.3,0.55]
[1737650668428,3.05211,3276.5,3276.3,0.55]
[1737650668763,3.05211,3276.5,3276.4,35.55]
[1737650669970,7.46502,3277.1,3276.4,35.55]
[1737650669971,3.05192,3276.7,3276.5,0.55]
[1737650670559,3.05168,3276.9,3276.5,3.65202562]
[1737650670852,3.05194,3276.6,3276.5,0.55]
[1737650672034,3.05213,3276.4,3276.1,8.77]
[1737650672228,3.0518,3276.8,3276.1,11.8224]
[1737650672590,6.10326,3277.0,3276.4,0.55]
[1737650672750,3.05171,3276.9,3276.4,0.55]
[1737650672949,3.05179,3276.8,3276.4,0.55]
[1737650673537,3.05179,3276.8,3276.6,0.55]
[1737650674377,3.05141,3277.2,3276.6,4.54299497]
[1737650674584,1.4302,3277.7,3276.6,10.26112497]
[1737650674877,3.05148,3277.1,3276.7,0.55]
[1737650675287,3.05128,3277.4,3276.7,0.55]
[1737650675431,1.4302,3277.7,3277.1,3.0514]
[1737650675633,1.4302,3277.7,3277.1,0.55]
[1737650676085,3.05138,3277.2,3277.1,0.55]
[1737650678248,3.661646,3277.2,3277.1,0.55]
[1737650679545,3.05138,3277.2,3277.1,0.55]
[1737650679746,3.05154,3277.1,3276.6,0.55]
[1737650679952,3.05154,3277.1,3276.6,3.60193]
[1737650680272,3.05154,3277.1,3276.6,3.60189]
[1737650680434,3.05125,3277.4,3276.9,0.55]
[1737650680637,3.05129,3277.3,3276.9,0.55]
[1737650681192,3.0517,3276.9,3276.7,8.77]
[1737650681397,3.0517,3276.9,3276.8,0.55]
[1737650681686,3.05151,3277.1,3276.8,0.55]
[1737650681840,3.0512,3277.4,3277.0,0.55]
[1737650682039,0.60824109,3277.5,3277.0,0.55]
[1737650682382,3.05149,3277.1,3276.8,0.55]
[1737650682556,3.05144,3277.2,3276.7,3.60184]
[1737650682954,3.05144,3277.2,3276.6,0.55]
[1737650683157,3.05144,3277.2,3276.6,5.57249038]
[1737650683385,3.05144,3277.2,3276.8,0.55]
[1737650683985,3.05144,3277.2,3276.7,0.55]
[1737650684287,3.05173,3276.9,3276.7,0.55]
[1737650684465,3.05129,3277.3,3276.6,0.55]
[1737650684667,0.60824109,3277.5,3276.6,0.55]
[1737650684854,3.05185,3276.7,3276.6,0.55]
[1737650685248,3.05171,3276.9,3276.6,0.55]
[1737650685449,3.05159,3277.0,3276.6,0.55]
[1737650685654,3.05171,3276.9,3276.6,0.55]
[1737650685873,3.05152,3277.1,3276.6,3.65202562]
[1737650686075,3.05132,3277.3,3276.6,6.70395562]
[1737650686299,3.05132,3277.3,3276.9,0.55]
[1737650686484,3.05096,3277.7,3277.1,0.55]
[1737650686683,3.05096,3277.7,3277.3,0.55]
[1737650686979,3.05077,3277.9,3277.3,0.55]
[1737650686980,3.05077,3277.9,3277.5,0.55]
[1737650687466,3.05057,3278.1,3277.7,0.55]
[1737650687875,3.05057,3278.1,3277.9,0.55]
[1737650688292,3.05057,3278.1,3277.7,0.55]
[1737650688662,3.0502,3278.5,3278.1,0.55]
[1737650688883,3.0502,3278.5,3278.3,0.55]
[1737650689193,3.05003,3278.7,3278.3,0.55]
[1737650689358,3.0501,3278.6,3278.5,0.55]
[1737650689560,3.04983,3278.9,3278.5,0.55]
[1737650689882,3.04983,3278.9,3278.7,0.55]
[1737650690054,3.04962,3279.1,3278.9,0.55]
[1737650690254,3.04962,3279.1,3278.5,0.55]
[1737650690504,3.04988,3278.9,3278.5,9.32]
[1737650690705,3.04988,3278.9,3278.6,35.0]
[1737650691059,3.04993,3278.8,3278.7,0.55]
[1737650691254,3.64862436,3279.4,3278.4,1.3735]
[1737650691255,3.05008,3278.6,3278.4,1.3735]
[1737650691489,3.0499,3278.8,3278.4,2.406873]
[1737650691807,3.0498,3278.9,3278.8,0.55]
[1737650694021,3.05002,3278.7,3278.5,0.55]
[1737650694480,3.05008,3278.6,3278.5,0.55]
[1737650695205,3.05008,3278.6,3278.5,35.55]
[1737650695370,3.05008,3278.6,3278.5,38.65202562]
[1737650695701,3.05008,3278.6,3278.5,35.55]
[1737650696278,3.05045,3278.2,3278.1,10.1248]
[1737650696675,3.05045,3278.2,3278.1,45.1248]
[1737650697510,3.05012,3278.6,3278.2,0.55]
[1737650697672,3.04992,3278.8,3278.2,3.60045]
[1737650697878,3.04992,3278.8,3278.4,0.55]
[1737650698072,3.05017,3278.5,3278.4,0.55]
[1737650698275,3.05009,3278.6,3278.2,0.55]
[1737650698485,3.05018,3278.5,3278.2,0.55]
[1737650698690,3.05018,3278.5,3278.4,0.55]
[1737650699009,3.0504,3278.3,3278.2,0.55]
[1737650699222,3.05018,3278.5,3278.2,0.55]
[1737650700589,3.05008,3278.6,3278.2,9.32]
[1737650700763,3.0502,3278.5,3278.2,9.32]
[1737650701461,3.05036,3278.3,3278.2,8.77]
[1737650701690,3.05036,3278.3,3278.2,9.32]
[1737650701879,3.05036,3278.3,3278.1,35.0]
[1737650702080,3.05045,3278.2,3278.1,35.0]
[1737650702291,3.05045,3278.2,3278.1,35.55]
[1737650702463,3.05045,3278.2,3278.1,35.0]
[1737650703202,3.0502,3278.5,3278.1,35.0]
[1737650703203,3.05019,3278.5,3278.2,0.55]
[1737650703568,1.3164,3278.9,3278.2,3.65202562]
[1737650703768,3.05014,3278.6,3278.3,8.77]
[1737650703998,3.05026,3278.4,3278.3,8.77]
[1737650704273,3.05026,3278.4,3278.3,43.77]
[1737650704471,3.05026,3278.4,3278.3,44.32]
[1737650704682,3.05026,3278.4,3278.3,8.77]
[1737650704981,4.31886,3278.4,3278.3,8.77]
[1737650705182,4.31886,3278.4,3278.3,43.77]
[1737650705497,3.05026,3278.4,3278.3,44.32]
[1737650705802,3.05014,3278.6,3278.3,44.32]
[1737650705803,3.05014,3278.6,3278.4,0.55]
[1737650706003,6.10031,3278.6,3278.4,0.55]
[1737650706341,3.05014,3278.6,3278.4,0.55]
[1737650706505,3.05014,3278.6,3278.4,3.65202562]
[1737650706723,3.05017,3278.5,3278.4,0.55]
[1737650707696,0.62042926,3278.9,3278.4,0.55]
[1737650707903,3.0501,3278.6,3278.4,0.55]
[1737650708282,3.05017,3278.5,3278.4,0.55]
[1737650708719,3.05026,3278.4,3278.3,43.77]
[1737650709413,3.05026,3278.4,3278.3,35.55]
[1737650709574,3.05017,3278.5,3278.4,0.55]
[1737650709776,3.05003,3278.7,3278.4,0.55]
[1737650710336,3.04964,3279.1,3278.4,10.6804]
[1737650710481,3.04947,3279.3,3278.8,0.55]
[1737650710683,3.04945,3279.3,3279.0,0.55]
[1737650710900,3.04931,3279.5,3279.2,0.55]
[1737650711181,3.04909,3279.7,3279.2,3.0495]
[1737650711434,6.09746,3280.1,3279.5,1.8932]
[1737650711591,3.04862,3280.2,3279.6,3.04907]
[1737650711797,3.6692585,3280.3,3279.7,0.55]
[1737650712034,3.04859,3280.2,3279.7,0.55]
[1737650712518,3.04859,3280.2,3279.9,0.55]
[1737650712831,3.04878,3280.0,3279.9,0.55]
[1737650713180,0.6206785,3280.3,3279.9,0.55]
[1737650713181,0.6206785,3280.3,3279.9,1.12463438]
[1737650713405,3.04822,3280.6,3280.1,0.55]
[1737650713591,3.04833,3280.5,3280.1,0.55]
[1737650714227,0.1695681,3280.8,3279.1,1.3904]
[1737650714228,1.303,3280.3,3279.1,1.3904]
[1737650714427,1.303,3280.3,3277.8,0.626]
[1737650714428,3.04933,3279.4,3278.8,1.3904]
[1737650715118,3.04949,3279.3,3278.8,1.3904]
[1737650715322,3.04927,3279.5,3278.9,3.59973]
[1737650715524,1.3055,3279.9,3278.8,1.3904]
[1737650715725,3.04967,3279.1,3278.8,1.3904]
[1737650715898,3.04967,3279.1,3278.9,35.0]
[1737650716084,1.3537,3280.3,3279.5,1.3421]
[1737650716285,0.32123111,3280.8,3279.6,3.04915]
[1737650716286,1.5232681,3280.8,3279.6,3.04915]
[1737650716506,3.04841,3280.4,3279.7,3.04897]
[1737650716708,3.04841,3280.4,3279.8,35.0]
[1737650716881,3.04841,3280.4,3280.0,0.55]
[1737650717086,1.5232681,3280.8,3280.0,0.55]
[1737650717429,1.5232681,3280.8,3279.6,1.269]
[1737650717636,3.04943,3279.3,3279.2,35.0]
[1737650717923,3.04943,3279.3,3279.1,6.5]
[1737650717924,3.04946,3279.3,3279.1,6.5]
[1737650718129,0.4981,3280.2,3278.8,1.3894]
[1737650718130,3.04868,3280.1,3278.8,1.3894]
[1737650718285,3.0498,3278.9,3278.2,0.7972]
[1737650718492,3.04966,3279.1,3278.5,3.05017]
[1737650718824,3.05008,3278.7,3278.2,0.7972]
[1737650719027,3.04967,3279.1,3278.4,3.0502]
[1737650719236,3.04972,3279.0,3278.5,35.0]
[1737650719391,3.0496,3279.2,3278.6,3.65202562]
[1737650719723,3.04971,3279.0,3278.6,3.65202562]
[1737650720095,3.04936,3279.4,3278.6,3.65202562]
[1737650720390,3.04977,3279.0,3278.6,3.65202562]
[1737650721001,3.0498,3278.9,3278.6,3.65202562]
[1737650721304,3.0498,3278.9,3278.8,0.55]
[1737650721625,3.04993,3278.8,3278.6,3.10202562]
[1737650721785,3.0498,3278.9,3278.6,3.10202562]
[1737650721786,3.04998,3278.7,3278.6,3.10202562]
[1737650721990,3.04989,3278.8,3278.7,0.55]
[1737650722223,3.04989,3278.8,3278.6,0.55]
[1737650722423,3.04989,3278.8,3278.6,2.08000547]
[1737650722643,3.04965,3279.1,3278.6,2.08000547]
[1737650722926,3.04972,3279.0,3278.6,2.08000547]
[1737650723292,0.75,3280.6,3278.6,2.08000547]
[1737650723293,0.4981,3280.3,3278.9,3.04979]
[1737650723493,0.4981,3280.3,3279.4,0.55]
[1737650723717,3.04868,3280.1,3279.4,0.55]
[1737650723885,3.04904,3279.8,3279.5,35.0]
[1737650724090,3.04893,3279.9,3279.6,0.55]
[1737650724303,3.04889,3279.9,3279.6,0.55]
[1737650724530,3.04889,3279.9,3279.8,0.55]
[1737650725042,1.1100138,3280.3,3279.8,0.55]
[1737650725642,3.04873,3280.1,3279.8,0.55]
[1737650725838,3.04854,3280.3,3279.8,0.55]
[1737650726154,3.2176681,3280.8,3280.0,3.59871]
[1737650726369,0.1695681,3280.8,3280.2,0.55]
[1737650726728,0.1695681,3280.8,3280.4,0.55]
[1737650726729,3.2176281,3280.8,3280.4,0.55]
[1737650727052,3.2176281,3280.8,3280.2,0.55]
[1737650727508,3.2176281,3280.8,3280.6,0.55]
[1737650727905,0.1695681,3280.8,3280.3,0.55]
[1737650728144,0.1695681,3280.8,3280.4,0.359857]
[1737650728446,0.1695681,3280.8,3280.7,35.55]
[1737650728957,3.2175981,3280.8,3280.7,35.55]
[1737650729475,0.1695681,3280.8,3280.7,35.55]
[1737650729629,3.2175981,3280.8,3280.7,35.55]
[1737650729819,3.2175981,3280.8,3280.4,0.359857]
[1737650730168,3.04831,3280.5,3280.1,0.625]
[1737650730369,3.04816,3280.7,3280.2,35.55]
[1737650730525,3.04812,3280.7,3280.2,35.55]
[1737650731074,3.04827,3280.6,3280.2,35.55]